[Event "Live Chess"]
[Site "Chess.com"]
[Date "2023.05.20"]
[Round "-"]
[White "f4nomore"]
[Black "Hacker_2009"]
[Result "1-0"]
[WhiteElo "1366"]
[BlackElo "1913"]
[TimeControl "300"]
[EndTime "9:34:45 PDT"]
[Termination "f4nomore won by resignation"]

1. d4 {[%clk 0:04:57.2]} 1... Nf6 {[%clk 0:04:58.8]} 2. Bg5 {[%clk 0:04:55.1]}
2... e6 {[%clk 0:04:56.8]} 3. Bxf6 {[%clk 0:04:54]} 3... Qxf6 {[%clk 0:04:55.4]}
4. e3 {[%clk 0:04:52.7]} 4... d5 {[%clk 0:04:54.9]} 5. Nf3 {[%clk 0:04:51.4]}
5... c5 {[%clk 0:04:54.1]} 6. c3 {[%clk 0:04:49.6]} 6... Nc6 {[%clk 0:04:52.5]}
7. Be2 {[%clk 0:04:47.6]} 7... cxd4 {[%clk 0:04:51.9]} 8. cxd4 {[%clk
0:04:46.4]} 8... Bb4+ {[%clk 0:04:50.7]} 9. Nbd2 {[%clk 0:04:43.4]} 9... O-O
{[%clk 0:04:48.7]} 10. O-O {[%clk 0:04:41.2]} 10... b6 {[%clk 0:04:47.4]} 11. a3
{[%clk 0:04:39.8]} 11... Bd6 {[%clk 0:04:46.4]} 12. h3 {[%clk 0:04:35.9]} 12...
Bb7 {[%clk 0:04:45.8]} 13. Nh2 {[%clk 0:04:32]} 13... Rac8 {[%clk 0:04:43.9]}
14. Ng4 {[%clk 0:04:30.5]} 14... Qe7 {[%clk 0:04:43]} 15. Nf3 {[%clk 0:04:18]}
15... Bb8 {[%clk 0:04:39.2]} 16. Nge5 {[%clk 0:04:15.6]} 16... Nxe5 {[%clk
0:04:38.2]} 17. Nxe5 {[%clk 0:04:13.5]} 17... Bxe5 {[%clk 0:04:36.9]} 18. dxe5
{[%clk 0:04:12.1]} 18... Qg5 {[%clk 0:04:36.5]} 19. f4 {[%clk 0:04:07]} 19...
Qg3 {[%clk 0:04:33.7]} 20. Bf3 {[%clk 0:04:01.9]} 20... Ba6 {[%clk 0:04:30.2]}
21. Qe1 {[%clk 0:03:52.6]} 21... Qxe1 {[%clk 0:04:24]} 22. Rfxe1 {[%clk
0:03:50.9]} 22... Rc2 {[%clk 0:04:23.5]} 23. b4 {[%clk 0:03:38.6]} 23... Rfc8
{[%clk 0:04:21.7]} 24. Rab1 {[%clk 0:03:27]} 24... h6 {[%clk 0:04:16.8]} 25. b5
{[%clk 0:03:20.5]} 25... Bb7 {[%clk 0:04:12.9]} 26. Re2 {[%clk 0:03:15]} 26...
Rxe2 {[%clk 0:04:10.5]} 27. Bxe2 {[%clk 0:03:13.3]} 27... Rc2 {[%clk 0:04:10.4]}
28. Kf1 {[%clk 0:03:05.3]} 28... Ra2 {[%clk 0:04:07.1]} 29. Rb3 {[%clk
0:03:01.4]} 29... Rd2 {[%clk 0:04:00.7]} 30. Kf2 {[%clk 0:02:59.2]} 30... d4
{[%clk 0:03:55.2]} 31. exd4 {[%clk 0:02:52.9]} 31... Rxd4 {[%clk 0:03:55.1]} 32.
Rd3 {[%clk 0:02:49.7]} 32... Rxf4+ {[%clk 0:03:52.8]} 33. Kg3 {[%clk 0:02:41.3]}
33... Rf5 {[%clk 0:03:51.6]} 34. Rd8+ {[%clk 0:02:38.3]} 34... Kh7 {[%clk
0:03:50.5]} 35. Bd3 {[%clk 0:02:36.8]} 35... g6 {[%clk 0:03:45.4]} 36. Bxf5
{[%clk 0:02:35.3]} 36... exf5 {[%clk 0:03:44.8]} 37. Rd7 {[%clk 0:02:34]} 37...
Be4 {[%clk 0:03:43.7]} 38. Rxa7 {[%clk 0:02:32]} 38... Kg7 {[%clk 0:03:42.4]}
39. Ra6 {[%clk 0:02:29.4]} 39... f6 {[%clk 0:03:39.8]} 40. e6 {[%clk 0:02:26]}
40... g5 {[%clk 0:03:38.7]} 41. Rxb6 {[%clk 0:02:21.7]} 41... f4+ {[%clk
0:03:38.1]} 42. Kf2 {[%clk 0:02:19.1]} 42... Kf8 {[%clk 0:03:33.7]} 43. Ra6
{[%clk 0:02:16.2]} 43... Ke7 {[%clk 0:03:32.7]} 44. Ra7+ {[%clk 0:02:13.2]}
44... Kxe6 {[%clk 0:03:32.1]} 45. b6 {[%clk 0:02:12.5]} 45... Kd6 {[%clk
0:03:28.5]} 46. b7 {[%clk 0:02:10.5]} 46... Kc7 {[%clk 0:03:27.4]} 47. Ra6
{[%clk 0:02:02.4]} 47... Kxb7 {[%clk 0:03:17.7]} 48. Rxf6 {[%clk 0:02:00.7]}
48... h5 {[%clk 0:03:13.8]} 49. a4 {[%clk 0:01:58.1]} 49... h4 {[%clk
0:03:11.3]} 50. a5 {[%clk 0:01:54.6]} 50... Ka7 {[%clk 0:03:04.5]} 51. Re6
{[%clk 0:01:49.1]} 51... Bd3 {[%clk 0:03:03.2]} 52. Re5 {[%clk 0:01:46.1]} 1-0

[Event "Live Chess"]
[Site "Chess.com"]
[Date "2023.05.20"]
[Round "-"]
[White "Jeffaroow"]
[Black "ReeceHockton"]
[Result "1-0"]
[WhiteElo "455"]
[BlackElo "323"]
[TimeControl "300"]
[EndTime "9:34:47 PDT"]
[Termination "Jeffaroow won on time"]

1. e4 {[%clk 0:04:56.5]} 1... e5 {[%clk 0:04:58.5]} 2. Nf3 {[%clk 0:04:55.5]}
2... Nc6 {[%clk 0:04:56.8]} 3. d4 {[%clk 0:04:54.2]} 3... f6 {[%clk 0:04:55.7]}
4. dxe5 {[%clk 0:04:52.9]} 4... fxe5 {[%clk 0:04:54.8]} 5. Bc4 {[%clk
0:04:43.3]} 5... Nf6 {[%clk 0:04:51.3]} 6. Bg5 {[%clk 0:04:35.7]} 6... Be7
{[%clk 0:04:49]} 7. Bxf6 {[%clk 0:04:33.4]} 7... Bxf6 {[%clk 0:04:47.7]} 8. Nc3
{[%clk 0:04:30.8]} 8... Rf8 {[%clk 0:04:46]} 9. Nd5 {[%clk 0:04:28.9]} 9... d6
{[%clk 0:04:26.4]} 10. O-O {[%clk 0:04:21.8]} 10... Be6 {[%clk 0:04:23.4]} 11.
Nxc7+ {[%clk 0:04:12.7]} 11... Qxc7 {[%clk 0:04:17.5]} 12. Bxe6 {[%clk
0:04:11.4]} 12... Qe7 {[%clk 0:04:14.7]} 13. Bd5 {[%clk 0:03:59.6]} 13... Rb8
{[%clk 0:04:01.6]} 14. Bxc6+ {[%clk 0:03:51.9]} 14... Kf7 {[%clk 0:03:55]} 15.
Qd5+ {[%clk 0:03:45.9]} 15... Qe6 {[%clk 0:03:48.5]} 16. Qxe6+ {[%clk
0:03:42.8]} 16... Kxe6 {[%clk 0:03:47.5]} 17. Ba4 {[%clk 0:03:33.5]} 17... d5
{[%clk 0:03:35.1]} 18. Bb3 {[%clk 0:03:29.4]} 18... Rbd8 {[%clk 0:03:27.9]} 19.
Rad1 {[%clk 0:03:25.7]} 19... Ke7 {[%clk 0:03:02]} 20. Rxd5 {[%clk 0:03:21]}
20... Ke8 {[%clk 0:02:43.1]} 21. Ba4+ {[%clk 0:03:11.9]} 21... Ke7 {[%clk
0:02:36.7]} 22. Rxd8 {[%clk 0:03:10]} 22... Rxd8 {[%clk 0:02:35]} 23. h3 {[%clk
0:03:05.2]} 23... g5 {[%clk 0:02:32.8]} 24. c3 {[%clk 0:02:58.1]} 24... a6
{[%clk 0:02:28.8]} 25. Rd1 {[%clk 0:02:55]} 25... Rc8 {[%clk 0:02:21.1]} 26. Bb3
{[%clk 0:02:44.9]} 26... b5 {[%clk 0:02:16.8]} 27. Rd7+ {[%clk 0:02:43.3]} 27...
Kxd7 {[%clk 0:02:14.6]} 28. h4 {[%clk 0:02:36.3]} 28... gxh4 {[%clk 0:02:12.2]}
29. Bd1 {[%clk 0:02:29.2]} 29... Ke6 {[%clk 0:02:01.1]} 30. Nxh4 {[%clk
0:02:27.4]} 30... Bxh4 {[%clk 0:01:57.7]} 31. Bg4+ {[%clk 0:02:26.2]} 31... Kd6
{[%clk 0:01:47.1]} 32. Bxc8 {[%clk 0:02:24.7]} 32... Kc7 {[%clk 0:01:19.5]} 33.
Bxa6 {[%clk 0:02:23]} 33... Kb6 {[%clk 0:01:16.6]} 34. Bc8 {[%clk 0:02:20.7]}
34... Kc7 {[%clk 0:01:13.9]} 35. Bh3 {[%clk 0:02:15.9]} 35... Kc6 {[%clk
0:01:08.6]} 36. g3 {[%clk 0:02:14.7]} 36... Bg5 {[%clk 0:01:05.9]} 37. b3 {[%clk
0:02:08]} 37... Kc5 {[%clk 0:01:02.7]} 38. c4 {[%clk 0:02:05.8]} 38... bxc4
{[%clk 0:01:01.6]} 39. bxc4 {[%clk 0:02:04.4]} 39... Kxc4 {[%clk 0:01:00.8]} 40.
Be6+ {[%clk 0:02:02.9]} 40... Kd4 {[%clk 0:00:58.2]} 41. a4 {[%clk 0:02:01.9]}
41... Kxe4 {[%clk 0:00:54.1]} 42. a5 {[%clk 0:02:00.8]} 42... Bd8 {[%clk
0:00:33.4]} 43. a6 {[%clk 0:01:59]} 43... Bb6 {[%clk 0:00:31.7]} 44. Kf1 {[%clk
0:01:54.6]} 44... Kf3 {[%clk 0:00:28]} 45. g4 {[%clk 0:01:50.3]} 45... Kf4
{[%clk 0:00:23.4]} 46. Kg2 {[%clk 0:01:44.7]} 46... h6 {[%clk 0:00:18.5]} 47. f3
{[%clk 0:01:42.1]} 47... Kg5 {[%clk 0:00:15.4]} 48. Kh3 {[%clk 0:01:37.2]} 48...
h5 {[%clk 0:00:11.3]} 49. Kg3 {[%clk 0:01:29.7]} 49... h4+ {[%clk 0:00:06.6]}
50. Kh3 {[%clk 0:01:28.1]} 50... Bc5 {[%clk 0:00:02.3]} 51. Bf5 {[%clk
0:01:17.1]} 51... Bd4 {[%clk 0:00:01.8]} 52. Kg2 {[%clk 0:01:12.1]} 52... Bc5
{[%clk 0:00:01.5]} 53. f4+ {[%clk 0:01:04.9]} 1-0

[Event "Live Chess"]
[Site "Chess.com"]
[Date "2023.05.20"]
[Round "-"]
[White "akp42"]
[Black "LiamBellwood"]
[Result "0-1"]
[WhiteElo "1953"]
[BlackElo "2111"]
[TimeControl "300"]
[EndTime "9:34:47 PDT"]
[Termination "LiamBellwood won by checkmate"]

1. e4 {[%clk 0:04:59.2]} 1... e6 {[%clk 0:04:59.9]} 2. d4 {[%clk 0:04:57.5]}
2... d5 {[%clk 0:04:59.6]} 3. e5 {[%clk 0:04:56.2]} 3... c5 {[%clk 0:04:58.9]}
4. c3 {[%clk 0:04:55.8]} 4... Nc6 {[%clk 0:04:58.8]} 5. Be3 {[%clk 0:04:53.5]}
5... Bd7 {[%clk 0:04:58.5]} 6. Nf3 {[%clk 0:04:50.7]} 6... Qb6 {[%clk
0:04:56.5]} 7. Qd2 {[%clk 0:04:49.3]} 7... f6 {[%clk 0:04:41.4]} 8. dxc5 {[%clk
0:04:41.5]} 8... Bxc5 {[%clk 0:04:34.5]} 9. Bxc5 {[%clk 0:04:39.9]} 9... Qxc5
{[%clk 0:04:34.4]} 10. exf6 {[%clk 0:04:30.1]} 10... Nxf6 {[%clk 0:04:33.5]} 11.
Bd3 {[%clk 0:04:28.4]} 11... O-O {[%clk 0:04:28.2]} 12. O-O {[%clk 0:04:27.2]}
12... e5 {[%clk 0:04:26.8]} 13. b4 {[%clk 0:04:15.9]} 13... Qd6 {[%clk
0:04:15.3]} 14. b5 {[%clk 0:03:59]} 14... Ne7 {[%clk 0:04:04.5]} 15. Bc2 {[%clk
0:03:54.7]} 15... Bf5 {[%clk 0:03:53.5]} 16. Re1 {[%clk 0:03:49.6]} 16... Bxc2
{[%clk 0:03:50.8]} 17. Qxc2 {[%clk 0:03:48.2]} 17... Ng6 {[%clk 0:03:41.2]} 18.
Nbd2 {[%clk 0:03:43.5]} 18... e4 {[%clk 0:03:29.8]} 19. Nd4 {[%clk 0:03:41.6]}
19... Ng4 {[%clk 0:03:26.7]} 20. Nf1 {[%clk 0:03:12.3]} 20... Rxf2 {[%clk
0:03:11.5]} 21. Qb3 {[%clk 0:03:09.4]} 21... Nh4 {[%clk 0:02:57.6]} 22. Rxe4
{[%clk 0:02:47.3]} 22... Rxg2+ {[%clk 0:02:56.4]} 23. Kh1 {[%clk 0:02:45.9]}
23... Nf2# {[%clk 0:02:55.9]} 0-1

[Event "Live Chess"]
[Site "Chess.com"]
[Date "2023.05.20"]
[Round "-"]
[White "HoarseyHorsey"]
[Black "luckywookie"]
[Result "1-0"]
[WhiteElo "1388"]
[BlackElo "717"]
[TimeControl "300"]
[EndTime "9:34:53 PDT"]
[Termination "HoarseyHorsey won by resignation"]

1. d4 {[%clk 0:04:58.9]} 1... c6 {[%clk 0:04:53.5]} 2. c4 {[%clk 0:04:58.6]}
2... d5 {[%clk 0:04:51.9]} 3. cxd5 {[%clk 0:04:58]} 3... cxd5 {[%clk 0:04:49]}
4. Bf4 {[%clk 0:04:54.3]} 4... Nc6 {[%clk 0:04:41.7]} 5. e3 {[%clk 0:04:52]}
5... Bf5 {[%clk 0:04:31.6]} 6. Nf3 {[%clk 0:04:48.3]} 6... e5 {[%clk 0:04:24.6]}
7. Nxe5 {[%clk 0:04:39.5]} 7... Nxe5 {[%clk 0:04:22.3]} 8. Bxe5 {[%clk
0:04:38.6]} 8... Bb4+ {[%clk 0:04:14.1]} 9. Nc3 {[%clk 0:04:36.7]} 9... Ne7
{[%clk 0:03:46.8]} 10. Bxg7 {[%clk 0:04:33.6]} 10... Rg8 {[%clk 0:03:42.6]} 11.
Bf6 {[%clk 0:04:32.6]} 11... Be4 {[%clk 0:03:38.5]} 12. Qa4+ {[%clk 0:04:27.2]}
12... Kf8 {[%clk 0:03:24.4]} 13. Qxb4 {[%clk 0:04:22.9]} 13... a5 {[%clk
0:03:20]} 14. Bxe7+ {[%clk 0:04:20.5]} 14... Qxe7 {[%clk 0:03:18.1]} 15. Qxe7+
{[%clk 0:04:19.6]} 15... Kxe7 {[%clk 0:03:17.6]} 16. Nxe4 {[%clk 0:04:18.2]}
16... dxe4 {[%clk 0:03:15.9]} 17. g3 {[%clk 0:04:14.5]} 17... Rac8 {[%clk
0:03:13.4]} 18. Bg2 {[%clk 0:04:02]} 18... Rc2 {[%clk 0:03:08.9]} 19. O-O {[%clk
0:03:58]} 19... f5 {[%clk 0:03:06.4]} 20. Rab1 {[%clk 0:03:51]} 20... b5 {[%clk
0:02:58]} 21. Rfc1 {[%clk 0:03:49.6]} 21... Rc4 {[%clk 0:02:26.4]} 22. Rxc4
{[%clk 0:03:46.9]} 22... bxc4 {[%clk 0:02:24.6]} 23. Rc1 {[%clk 0:03:46.2]}
23... Rc8 {[%clk 0:02:23.1]} 24. Rc3 {[%clk 0:03:45]} 24... a4 {[%clk
0:02:15.9]} 25. Bf1 {[%clk 0:03:43.4]} 25... Kd6 {[%clk 0:02:12.6]} 26. Rxc4
{[%clk 0:03:40.8]} 26... Rxc4 {[%clk 0:02:10.2]} 27. Bxc4 {[%clk 0:03:40.7]}
27... Kc6 {[%clk 0:02:08.3]} 28. b3 {[%clk 0:03:31.5]} 28... a3 {[%clk
0:01:58.8]} 29. Kf1 {[%clk 0:03:30.2]} 29... h6 {[%clk 0:01:56.1]} 30. Ke1
{[%clk 0:03:29.1]} 30... Kb6 {[%clk 0:01:50.8]} 31. Kd2 {[%clk 0:03:28.5]} 31...
Kc6 {[%clk 0:01:46.6]} 32. Kc3 {[%clk 0:03:27.7]} 32... Kd6 {[%clk 0:01:46.2]}
33. Kb4 {[%clk 0:03:27]} 33... Kc6 {[%clk 0:01:44.5]} 34. Kxa3 {[%clk
0:03:26.3]} 34... Kb6 {[%clk 0:01:42.9]} 35. Kb4 {[%clk 0:03:25.5]} 35... h5
{[%clk 0:01:40.5]} 36. a4 {[%clk 0:03:24]} 36... f4 {[%clk 0:01:39.1]} 37. gxf4
{[%clk 0:03:21.4]} 37... h4 {[%clk 0:01:36.5]} 38. f5 {[%clk 0:03:18.9]} 1-0

[Event "Live Chess"]
[Site "Chess.com"]
[Date "2023.05.20"]
[Round "-"]
[White "JackRudd"]
[Black "Enhard"]
[Result "1-0"]
[WhiteElo "2424"]
[BlackElo "1386"]
[TimeControl "300"]
[EndTime "9:34:55 PDT"]
[Termination "JackRudd won by resignation"]

1. d4 {[%clk 0:04:58.7]} 1... c6 {[%clk 0:04:59]} 2. c4 {[%clk 0:04:57.2]} 2...
d5 {[%clk 0:04:58.2]} 3. Nf3 {[%clk 0:04:55.8]} 3... Nf6 {[%clk 0:04:57.1]} 4.
Nc3 {[%clk 0:04:54.4]} 4... Bf5 {[%clk 0:04:55.2]} 5. cxd5 {[%clk 0:04:52]} 5...
Nxd5 {[%clk 0:04:54.2]} 6. Qb3 {[%clk 0:04:49.9]} 6... e6 {[%clk 0:04:52.1]} 7.
e4 {[%clk 0:04:47.9]} 7... Nxc3 {[%clk 0:04:50.9]} 8. exf5 {[%clk 0:04:47.2]}
8... Nd5 {[%clk 0:04:43.4]} 9. fxe6 {[%clk 0:04:45.1]} 9... fxe6 {[%clk
0:04:40.9]} 10. Qxb7 {[%clk 0:04:44.1]} 10... Nd7 {[%clk 0:04:36]} 11. Qxc6
{[%clk 0:04:42.2]} 11... Bb4+ {[%clk 0:04:34.6]} 12. Bd2 {[%clk 0:04:41.3]}
12... Bxd2+ {[%clk 0:04:33.1]} 13. Nxd2 {[%clk 0:04:40.5]} 13... O-O {[%clk
0:04:30.6]} 14. Qxe6+ {[%clk 0:04:38.8]} 14... Kh8 {[%clk 0:04:27.1]} 15. Qxd5
{[%clk 0:04:37.8]} 15... Re8+ {[%clk 0:04:25.8]} 16. Be2 {[%clk 0:04:36.7]}
16... Rxe2+ {[%clk 0:04:21.2]} 17. Kxe2 {[%clk 0:04:35.4]} 17... Qe7+ {[%clk
0:04:18.3]} 18. Kf1 {[%clk 0:04:34.3]} 18... Re8 {[%clk 0:04:13.7]} 19. g3
{[%clk 0:04:32.9]} 19... Qe2+ {[%clk 0:04:06.9]} 20. Kg2 {[%clk 0:04:31.8]}
20... Nf6 {[%clk 0:04:04.7]} 21. Qg5 {[%clk 0:04:21.8]} 21... Ne4 {[%clk
0:03:56.7]} 22. Nxe4 {[%clk 0:04:20.3]} 22... Qxe4+ {[%clk 0:03:55.5]} 23. f3
{[%clk 0:04:19.3]} 23... Qc2+ {[%clk 0:03:50.9]} 24. Kh3 {[%clk 0:04:17.6]}
24... Qc8+ {[%clk 0:03:47.4]} 25. Qg4 {[%clk 0:04:16.1]} 25... Qc6 {[%clk
0:03:39.9]} 26. Rhe1 {[%clk 0:04:14.1]} 26... Qh6+ {[%clk 0:03:38.1]} 27. Qh4
{[%clk 0:04:12.5]} 27... Qc6 {[%clk 0:03:25.5]} 28. Rxe8+ {[%clk 0:04:09.3]}
28... Qxe8 {[%clk 0:03:24.6]} 29. Re1 {[%clk 0:04:08.1]} 29... Qc8+ {[%clk
0:03:21.1]} 30. Qg4 {[%clk 0:04:07]} 30... Qd8 {[%clk 0:03:19]} 31. Qe6 {[%clk
0:04:05.5]} 1-0

[Event "Live Chess"]
[Site "Chess.com"]
[Date "2023.05.20"]
[Round "-"]
[White "BearFromUkraine"]
[Black "thrithik"]
[Result "1-0"]
[WhiteElo "1196"]
[BlackElo "483"]
[TimeControl "300"]
[EndTime "9:35:04 PDT"]
[Termination "BearFromUkraine won by checkmate"]

1. e4 {[%clk 0:04:55.7]} 1... Nf6 {[%clk 0:04:57.4]} 2. e5 {[%clk 0:04:53.1]}
2... d6 {[%clk 0:04:54.7]} 3. exf6 {[%clk 0:04:51.3]} 3... exf6 {[%clk 0:04:53]}
4. Nf3 {[%clk 0:04:48.3]} 4... Qe7+ {[%clk 0:04:52.6]} 5. Qe2 {[%clk 0:04:43.8]}
5... Bg4 {[%clk 0:04:40.8]} 6. Qxe7+ {[%clk 0:04:40.7]} 6... Bxe7 {[%clk
0:04:38]} 7. Be2 {[%clk 0:04:39.4]} 7... Bxf3 {[%clk 0:04:35.6]} 8. Bxf3 {[%clk
0:04:38.4]} 8... Bf8 {[%clk 0:04:32.6]} 9. Bxb7 {[%clk 0:04:36.3]} 9... Nd7
{[%clk 0:04:32.2]} 10. Bxa8 {[%clk 0:04:35.1]} 10... Nb6 {[%clk 0:04:25.9]} 11.
Bf3 {[%clk 0:04:33.2]} 11... Be7 {[%clk 0:04:21.3]} 12. O-O {[%clk 0:04:31.2]}
12... f5 {[%clk 0:04:18.5]} 13. Nc3 {[%clk 0:04:28.8]} 13... Bd8 {[%clk
0:04:18.1]} 14. d4 {[%clk 0:04:26.6]} 14... Rf8 {[%clk 0:04:16.7]} 15. Re1+
{[%clk 0:04:22.6]} 15... Kd7 {[%clk 0:04:13.9]} 16. Be3 {[%clk 0:04:08.4]} 16...
f6 {[%clk 0:04:09.7]} 17. Nd5 {[%clk 0:04:03.3]} 17... c6 {[%clk 0:04:07.6]} 18.
Nxb6+ {[%clk 0:04:01.7]} 18... Bxb6 {[%clk 0:04:05.2]} 19. d5 {[%clk 0:03:58.4]}
19... Ba5 {[%clk 0:04:03.4]} 20. dxc6+ {[%clk 0:03:55.6]} 20... Kc7 {[%clk
0:04:00.8]} 21. c3 {[%clk 0:03:53.1]} 21... Bb6 {[%clk 0:03:55.2]} 22. Bxb6+
{[%clk 0:03:51]} 22... Kxb6 {[%clk 0:03:53.7]} 23. Rad1 {[%clk 0:03:44.9]} 23...
d5 {[%clk 0:03:49]} 24. Bxd5 {[%clk 0:03:41.5]} 24... Kc5 {[%clk 0:03:47.6]} 25.
Bf3 {[%clk 0:03:39.1]} 25... g5 {[%clk 0:03:40.6]} 26. g3 {[%clk 0:03:33.6]}
26... f4 {[%clk 0:03:38.8]} 27. c7 {[%clk 0:03:29.9]} 27... h5 {[%clk
0:03:34.6]} 28. Rd8 {[%clk 0:03:26.7]} 28... Rxd8 {[%clk 0:03:31.8]} 29. cxd8=Q
{[%clk 0:03:25.7]} 29... g4 {[%clk 0:03:28]} 30. Bxg4 {[%clk 0:03:20.1]} 30...
hxg4 {[%clk 0:03:24.6]} 31. Qxf6 {[%clk 0:03:19.1]} 31... Kc4 {[%clk 0:03:21.4]}
32. Qd4+ {[%clk 0:03:15.6]} 32... Kb5 {[%clk 0:03:19.6]} 33. Re5+ {[%clk
0:03:14.6]} 33... Kc6 {[%clk 0:03:17]} 34. Qc5+ {[%clk 0:03:09.5]} 34... Kb7
{[%clk 0:03:13.6]} 35. Re7+ {[%clk 0:03:06.6]} 35... Ka6 {[%clk 0:03:12.4]} 36.
a4 {[%clk 0:02:58.6]} 36... fxg3 {[%clk 0:03:07.8]} 37. Qb5# {[%clk 0:02:57.6]}
1-0

[Event "Live Chess"]
[Site "Chess.com"]
[Date "2023.05.20"]
[Round "-"]
[White "JormaIbo"]
[Black "chrisbradgate"]
[Result "0-1"]
[WhiteElo "421"]
[BlackElo "830"]
[TimeControl "300"]
[EndTime "9:35:06 PDT"]
[Termination "chrisbradgate won on time"]

1. e4 {[%clk 0:04:56.9]} 1... e5 {[%clk 0:04:55.8]} 2. Nf3 {[%clk 0:04:56.2]}
2... Nc6 {[%clk 0:04:54.5]} 3. Bc4 {[%clk 0:04:54.6]} 3... h6 {[%clk 0:04:52.6]}
4. O-O {[%clk 0:04:50.5]} 4... f6 {[%clk 0:04:50.9]} 5. d3 {[%clk 0:04:42.9]}
5... d6 {[%clk 0:04:49.8]} 6. Nc3 {[%clk 0:04:40.2]} 6... Bg4 {[%clk 0:04:48.3]}
7. h3 {[%clk 0:04:38.5]} 7... Bxf3 {[%clk 0:04:46.5]} 8. Qxf3 {[%clk 0:04:37.8]}
8... Qd7 {[%clk 0:04:44.3]} 9. b3 {[%clk 0:04:14.2]} 9... a6 {[%clk 0:04:42.7]}
10. Nd5 {[%clk 0:04:00.3]} 10... O-O-O {[%clk 0:04:36.2]} 11. Ne3 {[%clk
0:03:44.4]} 11... Nge7 {[%clk 0:04:32.6]} 12. a4 {[%clk 0:03:24]} 12... Nb4
{[%clk 0:04:13.2]} 13. Bd2 {[%clk 0:03:07.2]} 13... Nbc6 {[%clk 0:04:02.6]} 14.
Nd5 {[%clk 0:02:50.3]} 14... Nxd5 {[%clk 0:03:56.2]} 15. exd5 {[%clk 0:02:48.9]}
15... Nd4 {[%clk 0:03:54.8]} 16. Qe3 {[%clk 0:02:31.8]} 16... Nxc2 {[%clk
0:03:47]} 17. Qa7 {[%clk 0:02:27.7]} 17... Qf5 {[%clk 0:03:23.5]} 18. Rac1
{[%clk 0:02:09.8]} 18... Nd4 {[%clk 0:03:11.8]} 19. Qa8+ {[%clk 0:01:49.2]}
19... Kd7 {[%clk 0:03:09.9]} 20. Qxb7 {[%clk 0:01:42]} 20... Ne2+ {[%clk
0:03:08.6]} 21. Kh1 {[%clk 0:01:38.6]} 21... Nxc1 {[%clk 0:03:06.2]} 22. Qc6+
{[%clk 0:01:31]} 22... Ke7 {[%clk 0:02:50.6]} 23. Qxc7+ {[%clk 0:01:27]} 23...
Rd7 {[%clk 0:02:47.6]} 24. Qc6 {[%clk 0:01:04.9]} 24... Ne2 {[%clk 0:02:32.4]}
25. d4 {[%clk 0:00:42.7]} 25... Nxd4 {[%clk 0:02:18.4]} 26. Qxa6 {[%clk
0:00:38.4]} 26... g5 {[%clk 0:02:05.5]} 27. Bb4 {[%clk 0:00:17.1]} 27... Bg7
{[%clk 0:01:51.4]} 28. Bb5 {[%clk 0:00:13.5]} 28... Nxb5 {[%clk 0:01:41.3]} 29.
Qxb5 {[%clk 0:00:12.6]} 29... g4 {[%clk 0:01:11.4]} 30. Rc1 {[%clk 0:00:00.7]}
30... Qxf2 {[%clk 0:00:59.3]} 31. Bxd6+ {[%clk 0:00:00.6]} 31... Rxd6 {[%clk
0:00:18]} 32. Rc7+ {[%clk 0:00:00.5]} 32... Rd7 {[%clk 0:00:11.4]} 33. Rxd7+
{[%clk 0:00:00.1]} 33... Ke8 {[%clk 0:00:00.6]} 0-1

[Event "Live Chess"]
[Site "Chess.com"]
[Date "2023.05.20"]
[Round "-"]
[White "Zeraora719"]
[Black "Chesscoach_Golichenko"]
[Result "0-1"]
[WhiteElo "1280"]
[BlackElo "2644"]
[TimeControl "300"]
[EndTime "9:35:12 PDT"]
[Termination "Chesscoach_Golichenko won by checkmate"]

1. e4 {[%clk 0:04:57.5]} 1... Nf6 {[%clk 0:04:58.3]} 2. Nc3 {[%clk 0:04:53.1]}
2... d6 {[%clk 0:04:53.3]} 3. d4 {[%clk 0:04:51.3]} 3... g6 {[%clk 0:04:51.9]}
4. Nf3 {[%clk 0:04:49.5]} 4... Bg7 {[%clk 0:04:50.8]} 5. g3 {[%clk 0:04:46.7]}
5... O-O {[%clk 0:04:49.7]} 6. Bg2 {[%clk 0:04:45.3]} 6... c6 {[%clk 0:04:48.4]}
7. e5 {[%clk 0:04:32.8]} 7... dxe5 {[%clk 0:04:45.9]} 8. dxe5 {[%clk 0:04:31.7]}
8... Qxd1+ {[%clk 0:04:44.7]} 9. Nxd1 {[%clk 0:04:30.1]} 9... Ng4 {[%clk
0:04:38.3]} 10. O-O {[%clk 0:04:27.1]} 10... Nxe5 {[%clk 0:04:36.5]} 11. Nc3
{[%clk 0:04:23.5]} 11... Bg4 {[%clk 0:04:32.9]} 12. Bf4 {[%clk 0:04:09.9]} 12...
Nxf3+ {[%clk 0:04:22.6]} 13. Bxf3 {[%clk 0:04:00.5]} 13... Bxf3 {[%clk
0:04:22.5]} 14. Bxb8 {[%clk 0:03:58.9]} 14... Raxb8 {[%clk 0:04:20.4]} 15. Rfd1
{[%clk 0:03:55.5]} 15... Bxd1 {[%clk 0:04:19]} 16. Rxd1 {[%clk 0:03:53.2]} 16...
Bxc3 {[%clk 0:04:17.3]} 17. bxc3 {[%clk 0:03:51.1]} 17... Rbd8 {[%clk
0:04:17.2]} 18. Rd2 {[%clk 0:03:48.2]} 18... Rxd2 {[%clk 0:04:14.9]} 19. Kg2
{[%clk 0:03:46.6]} 19... Rfd8 {[%clk 0:04:14.8]} 20. Kg1 {[%clk 0:03:42.4]}
20... Rxc2 {[%clk 0:04:14.7]} 21. Kf1 {[%clk 0:03:38.7]} 21... Rdd2 {[%clk
0:04:14.6]} 22. Ke1 {[%clk 0:03:32.7]} 22... Rxf2 {[%clk 0:04:14.5]} 23. Kd1
{[%clk 0:03:29.2]} 23... Rxh2 {[%clk 0:04:14.4]} 24. Ke1 {[%clk 0:03:25.7]}
24... Rxa2 {[%clk 0:04:14.3]} 25. Kd1 {[%clk 0:03:23.4]} 25... Ra1# {[%clk
0:04:14.2]} 0-1